Cogmind - Beta 9.6 @@@ ROGUE MODE // 2020.08.28 @ 22:17:13 Player: muxecoid Result: Destroyed by L-61 Swordsman with Power Sword Performance ------------- Evolutions (6) 3000 Regions Visited (21) 4200 Robots Destroyed (291) 1455 Value Destroyed (12568) 12568 Prototype IDs (36) 720 Alien Tech Used (0) 0 Bonus (11278) 11278 TOTAL SCORE: 33221 Bonus ------- Triggered High Security 500 High Alert Combat Kills 5388 Follower Combat Kills 2837 Network Hubs Disabled 600 Met Data Miner 300 Met Warlord at Base 500 MAIN.C Attacked Warlord 500 Warlord Defense Kill 598 Built Enhanced Grunts 300 A7 Reached Mainframe 300 Met R17 at Cetus 500 Friendly Fire -1045 Cogmind --------- Core Integrity 0/1150 Matter 192/300 Energy 100/100 System Corruption 6% Temperature Cool (0) Movement Core (50) Location -4/Factory Parts ------- > --- POWER (2) -------- (None) > --- PROPULSION (4) --- (None) > --- UTILITY (11) ----- Improved Hacking Suite > --- WEAPON (2) ------- (None) > --- INVENTORY (4) ---- Vortex Chain Reactor Peak State ------------ > --- POWER ------------ Enhanced Fission Core > --- PROPULSION ------- Centrium Heavy Treads Centrium Heavy Treads > --- UTILITY ---------- Advanced Heat Sink Experimental Heat Sink Large Storage Unit High-capacity Storage Unit Experimental Targeting Computer Centrium Medium Armor Plating Centrium Medium Armor Plating Centrium Medium Armor Plating Improved Hacking Suite Improved Component Analysis Suite > --- WEAPON ----------- Neutron Cannon KE Penetrator > --- INVENTORY -------- Antimatter Reactor Heavy Treads Medium Storage Unit Improved Energy Well Advanced Sensor Array Experimental Weapon Shielding EM Dispersion Field Improved Hacking Suite EMDS Rocket Array Mini Smartbomb Launcher Axe [Rating: 121] Favorites ----------- Power Antimatter Reactor Engine Light Angular Momentum Engine Power Core Light Nuclear Core Reactor Antimatter Reactor Propulsion Centrium Heavy Treads Treads Centrium Heavy Treads Leg Experimental Myomer Leg Wheel Armored Huge Wheel Hover Unit Cooled Antigrav System Flight Unit Electron Diverter Utility Medium Storage Unit Device Advanced Heat Sink Storage Medium Storage Unit Processor Core Analyzer Hackware Improved Hacking Suite Protection Centrium Medium Armor Plating Weapon Flak Gun Energy Gun Advanced Variable Charge Gun Energy Cannon Light EM Pulse Cannon Ballistic Gun Flak Gun Ballistic Cannon Mass Driver Launcher Mini Smartbomb Launcher Slashing Weapon Axe Piercing Weapon Makeshift Spear Special Melee Weapon Datajack Build | -11 -10 -9 -8 -7 -7 -7 -7 -7 -7 -6 -6 -6 -6 -6 -6 -5 -5 -5 -5 -4 -4 ------- Run | Scr Mat Mat Mat Fac Was Fac Low Low Dat Pro Fac Ext Cet Arc Hub Fac Upp Upp War Pro Fac Slots Evolved 12 | . . 2 2 2 . . . . . . 2 . . . . 2 . . . . 2 Power 1 | . . . . . . . . . . . . . . . . . . . . . 1 Propulsion 2 | . . . . . . . . . . . . . . . . 2 . . . . . Utility 9 | . . 2 2 2 . . . . . . 2 . . . . . . . . . 1 Weapon . | . . . . . . . . . . . . . . . . . . . . . . Parts Attached 213 | 6 4 11 17 9 4 2 1 1 . 4 19 8 10 3 33 34 7 3 12 3 22 Power 15 | 1 . 2 2 . 1 . . . . . 1 . . 1 2 3 . . 1 . 1 Engine 6 | 1 . 1 2 . . . . . . . . . . . 1 . . . 1 . . Core 2 | . . 1 . . . . . . . . . . . . . 1 . . . . . Reactor 7 | . . . . . 1 . . . . . 1 . . 1 1 2 . . . . 1 Propulsion 28 | 2 1 2 6 1 . . . . . . 2 . 1 . 1 3 1 . 5 . 3 Treads 11 | . . 2 3 . . . . . . . 1 . 1 . 1 3 . . . . . Leg 4 | . . . . . . . . . . . . . . . . . . . 3 . 1 Wheel 9 | 2 1 . 3 1 . . . . . . 1 . . . . . 1 . . . . Hover 1 | . . . . . . . . . . . . . . . . . . . 1 . . Flight 3 | . . . . . . . . . . . . . . . . . . . 1 . 2 Utility 70 | 1 2 2 5 3 3 2 . . . 2 6 3 3 . 8 19 1 . 5 . 5 Device 19 | . . . 1 . . . . . . 1 1 . . . . 9 . . 4 . 3 Storage 14 | 1 2 2 2 . 2 1 . . . . . 1 . . 1 1 . . 1 . . Processor 4 | . . . 1 1 . . . . . . . . . . 1 . . . . . 1 Hackware 9 | . . . . . . 1 . . . . 3 . . . . 4 1 . . . . Protection 24 | . . . 1 2 1 . . . . 1 2 2 3 . 6 5 . . . . 1 Artifact . | . . . . . . . . . . . . . . . . . . . . . . Weapon 100 | 2 1 5 4 5 . . 1 1 . 2 10 5 6 2 22 9 5 3 1 3 13 Energy Gun 5 | . . 1 . . . . . . . . . . . 1 1 2 . . . . . Energy Cannon 12 | . . 2 2 . . . . . . . 1 . . . . 2 . . . . 5 Ballistic Gun 34 | 2 1 2 1 3 . . 1 1 . 1 4 2 2 1 9 2 . . . 1 1 Ballistic Cannon 1 | . . . . . . . . . . . . . . . . . 1 . . . . Launcher 34 | . . . 1 1 . . . . . 1 3 3 3 . 11 1 3 2 1 1 3 Special Weapon . | . . . . . . . . . . . . . . . . . . . . . . Impact Weapon . | . . . . . . . . . . . . . . . . . . . . . . Slashing Weapon 12 | . . . . . . . . . . . 2 . 1 . 1 2 . 1 . 1 4 Piercing Weapon 1 | . . . . . . . . . . . . . . . . . 1 . . . . Special Melee Weapon 1 | . . . . 1 . . . . . . . . . . . . . . . . . Unidentified Prototypes 18 | . . 1 . . . . . . . . 2 . 2 2 1 3 . . 5 . 2 Parts Lost 87 | . 1 6 8 1 . . . . . 1 6 . . . 15 15 11 1 . . 22 Power 7 | . . 1 1 . . . . . . . 1 . . . 3 1 . . . . . Propulsion 18 | . . 2 4 . . . . . . . 1 . . . 1 2 2 . . . 6 Utility 34 | . . . . 1 . . . . . 1 1 . . . 6 7 6 . . . 12 Weapon 28 | . 1 3 3 . . . . . . . 3 . . . 5 5 3 1 . . 4 Highest Loss Streak 9 | . 1 3 2 1 . . . . . 1 3 . . . 6 4 9 1 . . 9 Average Slot Usage (%) 83 | . 91 99 97 87 92 92 91 91 92 91 92 87 86 92 82 78 32 34 45 86 61 Engine 2 | . 14 8 9 7 3 . . . . . . . . . . . . . . 5 . Reactor 3 | . . . . . 3 7 7 7 7 7 6 6 6 6 5 4 . . . . 4 Treads 4 | . . 11 10 . . . . . . . . 6 6 6 5 10 3 . . . . Leg 1 | . . . . . . . . . . . . . . . . . . . 9 17 16 Wheel 3 | . 28 10 7 6 7 7 7 7 7 7 5 . . . . . . 5 2 . . Device 3 | . . . 5 . . . . . . . 2 . . . . 9 3 . 5 23 12 Storage 33 | . 21 44 44 38 40 46 46 46 46 46 40 40 40 40 43 18 4 . 4 5 . Processor 2 | . . . . 11 15 5 . . . . . . . . . 4 . . . . 1 Hackware 6 | . . . . . . 1 7 7 7 7 22 12 . . . 6 11 17 17 17 13 Protection 6 | . . . 2 9 4 7 7 7 7 5 . 8 20 26 11 9 2 . . . 2 Energy Gun 1 | . . 7 . . . . . . . . . . . . 2 4 . . . . . Energy Cannon 1 | . . 8 5 6 . . . . . . 1 . . . . 1 . . . . . Ballistic Gun 8 | . 27 5 12 3 15 15 14 14 15 12 8 8 9 5 9 3 . . . 3 . Naked Turns . | . . . . . . . . . . . . . . . . . . . . . . Heaviest Build 173 | 10 23 46 72 77 96 120 120 120 120 120 120 171 170 147 173 135 84 12 32 37 74 Greatest Support 160 | 20 20 40 40 40 28 28 28 28 28 28 70 70 80 80 80 160 150 28 65 65 85 Greatest Overweight (x) 53 | . 1 4 3 2 3 4 4 4 4 4 4 2 2 1 53 . . . 1 . 3 Average Overweight (x) 1 | . . 1 1 1 2 3 4 4 4 3 3 1 1 1 1 . . . . . . Largest Inventory Capacity 38 | 6 12 20 26 26 32 36 36 36 36 36 36 38 38 38 38 34 18 4 8 8 8 Average Capacity 27 | 4 9 19 25 26 28 35 36 36 36 36 36 36 38 38 37 25 7 4 7 8 4 Most Carried 38 | 4 11 17 25 25 32 33 35 35 34 34 35 32 38 38 38 24 7 4 8 8 8 Average Carried 24 | 1 7 14 20 22 27 32 34 34 34 34 32 29 34 37 36 17 5 3 5 7 4 Final Capacity 38 | 6 12 20 26 26 32 36 36 36 36 36 36 38 38 38 34 18 4 4 8 8 4 Final Carried 38 | 4 11 16 25 25 31 33 35 34 34 34 28 29 38 38 25 16 4 4 7 7 2 Class Distribution -------------------- 67% | Hauler-Mutant 15% | Hacker-Mutant 14% | Scavenger-Mutant Dominant Class ---------------- Mutant | -10/Materials Hauler-Mutant | -9/Materials Hauler-Mutant | -8/Materials Hauler-Mutant | -7/Factory Hauler-Mutant | -7/Waste Hauler-Mutant | -7/Factory Hauler-Mutant | -7/Lower Caves Hauler-Mutant | -7/Lower Caves Hauler-Mutant | -7/Data Miner Hauler-Mutant | -6/Proximity Caves Hauler-Mutant | -6/Factory Hauler-Mutant | -6/Extension Hauler-Mutant | -6/Cetus Hauler-Mutant | -6/Archives Hauler-Mutant | -6/Hub_04(d) Scavenger-Mutant | -5/Factory Hacker-Mutant | -5/Upper Caves Hacker-Mutant | -5/Upper Caves Hacker-Mutant | -5/Warlord Hacker-Mutant | -4/Proximity Caves Hacker-Mutant | -4/Factory Resources | -11 -10 -9 -8 -7 -7 -7 -7 -7 -7 -6 -6 -6 -6 -6 -6 -5 -5 -5 -5 -4 -4 ----------- Run | Scr Mat Mat Mat Fac Was Fac Low Low Dat Pro Fac Ext Cet Arc Hub Fac Upp Upp War Pro Fac Matter Collected 6504 | 242 169 198 325 41 874 13 102 55 . 337 180 353 297 100 1444 762 22 346 189 62 393 Remotely . | . . . . . . . . . . . . . . . . . . . . . . Salvage Created 12158 | . 305 570 1027 270 1554 13 16 55 . 321 486 236 332 250 3686 1611 107 343 140 22 814 Parts 575 | . 24 38 63 15 26 3 1 2 . 14 40 15 13 19 189 69 3 7 1 . 33 Haulers Intercepted 3 | . . 1 . . . . . . . . 1 . . . 1 . . . . . . Recyclers Shooed 7 | . 1 . . . . . . . . . 1 1 . . . 3 . . . . 1 Parts Field Recycled . | . . . . . . . . . . . . . . . . . . . . . . Retrieved Matter . | . . . . . . . . . . . . . . . . . . . . . . Parts Self-Destructed 26 | . . . . . . . . 2 . 17 . . . . . . 3 4 . . . Prevented 25 | . . . . . . . . . . . . . . . . . . . 25 . . Kills | -11 -10 -9 -8 -7 -7 -7 -7 -7 -7 -6 -6 -6 -6 -6 -6 -5 -5 -5 -5 -4 -4 ------- Run | Scr Mat Mat Mat Fac Was Fac Low Low Dat Pro Fac Ext Cet Arc Hub Fac Upp Upp War Pro Fac Combat Hostiles Destroyed 226 | . 9 12 21 7 6 . 1 1 . 11 12 2 6 1 70 27 6 12 5 2 15 Melee 5 | . . . . . . . . . . . . . . . 1 . 1 . . . 3 Guns 101 | . 9 8 8 . 6 . 1 1 . 3 4 1 1 1 39 19 . . . . . Cannons 19 | . . 4 6 . . . . . . . . . . . . 6 . 1 . . 2 AOE 90 | . . . 3 5 . . . . . 8 7 1 5 . 30 1 5 11 5 2 7 Classes Destroyed 21 | . 3 4 3 2 1 . 1 . . 1 . 1 1 . 3 . . . 1 . . Worker 22 | . . 2 1 . . . . . . . 6 1 . . 9 2 . . . . 1 Builder 13 | . . . 2 2 . . . . . . 2 2 . . 4 . . . . . 1 Tunneler 5 | . . . . 1 . . . . . . . 1 . . 2 . . . . . 1 Hauler 3 | . . 1 . . . . . . . . 1 . . . 1 . . . . . . Recycler 3 | . . . . . . . . . . . . . . . 1 1 . . . . 1 Mechanic 3 | . . . . 1 . . . . . . . . . . 2 . . . . . . Operator 10 | . 1 . 1 2 . 1 . . . . . . . 5 . . . . . . . Watcher 4 | . . 1 2 1 . . . . . . . . . . . . . . . . . Swarmer 52 | . 3 5 4 4 . . . . . 6 8 . . . 6 7 1 2 . 1 5 Saboteur 5 | . . . . . . . . . . . . . . . 5 . . . . . . Grunt 71 | . 6 4 7 3 . . . 1 . 3 3 . 1 . 15 8 4 7 4 . 5 Brawler 5 | . . . . . . . . . . 2 . . . . 2 1 . . . . . Duelist 10 | . . . 1 . . . . . . . . . 1 . 5 1 . 2 . . . Protector 7 | . . . . . . . . . . . . . . . 7 . . . . . . Sentry 22 | . . 3 6 . . . . . . . . 1 . 1 2 5 . 1 . 1 2 Specialist 1 | . . . . . . . . . . . . . . . . . . . 1 . . Hunter 18 | . . . 3 . . . . . . . 1 . . . 10 1 1 . . . 2 Programmer 13 | . . . . . . . . . . . . . 1 . 7 4 . . . . 1 Behemoth 1 | . . . . . . . . . . . . 1 . . . . . . . . . Compactor 6 | . . . . . 6 . . . . . . . . . . . . . . . . Cetus Guard 3 | . . . . . . . . . . . . . 3 . . . . . . . . Enhanced Grunt 2 | . . . . . . . . . . . . . . . 2 . . . . . . Lightning 11 | . . . . . . . . . . . . . . . 11 . . . . . . Thief 1 | . . . . . . . 1 . . . . . . . . . . . . . . Best Kill Streak 15 | . 5 4 5 8 1 1 1 1 . 5 9 5 3 3 15 10 3 9 5 2 6 Combat Bots Only 11 | . 5 4 4 4 1 . 1 1 . 5 5 2 3 1 11 8 3 9 5 2 5 Max Kills in Single Turn 6 | . 1 2 3 2 1 1 1 1 . 2 4 3 2 1 6 2 2 4 3 1 3 Gunslinging 1 | . . 1 1 . . . . . . . . . . . 1 1 . . . . . Exploded 6 | . . . 1 2 . . . . . 2 3 1 2 . 6 1 2 4 3 1 3 Melee 1 | . . . . . . . . . . . . . . . 1 . 1 . . . 1 Uniques/NPCs Destroyed . | . . . . . . . . . . . . . . . . . . . . . . Combat | -11 -10 -9 -8 -7 -7 -7 -7 -7 -7 -6 -6 -6 -6 -6 -6 -5 -5 -5 -5 -4 -4 -------- Run | Scr Mat Mat Mat Fac Was Fac Low Low Dat Pro Fac Ext Cet Arc Hub Fac Upp Upp War Pro Fac Damage Taken 24082 | . 416 1083 1414 356 . . 61 59 . 747 1591 168 512 98 7786 4101 2067 272 299 34 3018 Core 3307 | . 126 185 179 29 . . . 16 . 61 228 9 34 45 457 121 633 33 . . 1151 Absorbed by Shields 497 | . . . . . . . . . . . . 50 296 . . . . . . . 151 Reduced by Siege Mode 80 | . . . . . . . . . . . . . . . 80 . . . . . . Core Remaining (%) 54 | 100 49 53 67 . . . . . . 84 . . . . 9 . . . . 21 . Volleys Fired 677 | . 30 33 97 24 58 1 8 6 . 25 31 14 24 20 166 91 7 10 3 4 25 Largest 2 | . 2 2 2 2 2 2 2 2 . 2 2 2 2 1 2 2 1 1 1 1 1 Hottest 240 | . 40 112 56 56 56 56 56 56 . 61 84 67 56 35 115 240 80 80 80 80 80 Shots Fired 1069 | . 60 67 120 27 116 2 13 11 . 38 52 15 35 20 290 154 7 10 3 4 25 Gun 775 | . 60 36 46 6 116 2 13 11 . 21 37 5 24 20 264 114 . . . . . Cannon 194 | . . 31 73 18 . . . . . . 10 . . . . 39 . 6 . . 17 Launcher 100 | . . . 1 3 . . . . . 17 5 10 11 . 26 1 7 4 3 4 8 Special . | . . . . . . . . . . . . . . . . . . . . . . Kinetic 690 | . 60 12 46 6 116 2 13 11 . 21 37 5 24 20 256 55 . 6 . . . Thermal 106 | . . . . . . . . . . . . . . . 8 98 . . . . . Explosive 78 | . . . 1 3 . . . . . 17 5 1 1 . 23 1 7 4 3 4 8 Electromagnetic 195 | . . 55 73 18 . . . . . . 10 9 10 . 3 . . . . . 17 Robot Hit Streak 64 | . 6 13 14 15 14 4 7 5 . 6 7 6 9 8 18 64 8 9 3 . 7 Robot Miss Streak 15 | . 3 5 4 6 10 2 5 6 . 12 15 3 4 3 4 2 2 1 . . 2 Penetration Max 1 | . . . . . . . . . . . 1 . 1 1 1 1 . . . . 1 Secondary Targets 19 | . 1 1 1 . . . . . . 1 . . . . 14 1 . . . . . Max Gunslinging Chain 1 | . 1 1 1 . . . . . . 1 . . . . 1 1 . . . . . Shots Hit Robots 841 | . 39 43 90 23 113 2 13 11 . 24 49 15 23 18 195 127 6 4 1 . 45 Core Hits 815 | . 18 20 43 19 89 3 5 6 . 55 61 23 44 12 270 57 22 21 15 4 28 Critical Hits 68 | . . 1 2 . . . . . . . . . 1 4 46 6 . . . . 8 Critical Kills 32 | . . . . . . . . . . . . . . 4 23 3 . . . . 2 Critical Parts Destroyed 30 | . . 1 2 . . . . . . . . . 1 . 19 2 . . . . 5 Melee Attacks 115 | . . . . 1 . . . . . . 19 2 1 5 . 6 17 4 . 5 55 Impact . | . . . . . . . . . . . . . . . . . . . . . . Slashing 99 | . . . . . . . . . . . 19 2 1 5 . 6 2 4 . 5 55 Piercing 15 | . . . . . . . . . . . . . . . . . 15 . . . . Sneak Attacks 7 | . . . . 1 . . . . . . 3 . . 3 . . . . . . . Combat Hostiles . | . . . . . . . . . . . . . . . . . . . . . . Follow-up Attacks . | . . . . . . . . . . . . . . . . . . . . . . Damage Inflicted 41641 | . 484 772 2483 1338 3352 39 171 196 . 1960 2768 786 1713 912 13223 4045 1486 1456 1280 420 2757 Guns 15375 | . 484 282 570 64 3352 39 171 196 . 392 729 112 524 444 5462 2554 . . . . . Cannons 4538 | . . 490 1321 380 . . . . . . 190 . . . . 1258 . 127 . . 772 Explosions 19455 | . . . 592 894 . . . . . 1568 1283 610 1189 . 7723 232 1424 1329 1280 420 911 Melee 2222 | . . . . . . . . . . . 566 59 . 468 . . 55 . . . 1074 Ramming 51 | . . . . . . . . . . . . 5 . . 38 1 7 . . . . Kinetic 13934 | . 484 124 570 64 3352 39 171 196 . 392 729 112 524 444 5331 1275 . 127 . . . Thermal 3702 | . . . 413 156 . . . . . . . . 420 . 176 2537 . . . . . Explosive 16620 | . . . 179 738 . . . . . 1568 1283 188 386 . 6682 232 1424 1329 1280 420 911 Electromagnetic 5112 | . . 648 1321 380 . . . . . . 190 422 383 . 996 . . . . . 772 Impact . | . . . . . . . . . . . . . . . . . . . . . . Slashing 2222 | . . . . . . . . . . . 566 59 . 468 . . 55 . . . 1074 Piercing . | . . . . . . . . . . . . . . . . . . . . . . Highest Corruption 19 | . . 5 . . . . . . . . . . . . 17 13 13 13 19 . 6 Average Corruption 8 | . . 5 . . . . . . . . . . . . 6 8 13 13 15 . 4 Corruption Purged . | . . . . . . . . . . . . . . . . . . . . . . Effects 97 | . . 16 . . . . . . . . . . . . 9 18 23 20 3 . 8 Message Errors 19 | . . 1 . . . . . . . . . . . . 4 3 5 4 . . 2 Matter Fused 14 | . . 4 . . . . . . . . . . . . . 4 3 2 . . 1 Heat Flow Errors 5 | . . 1 . . . . . . . . . . . . . . . 2 . . 2 Energy Discharges 8 | . . 1 . . . . . . . . . . . . 2 . 2 1 1 . 1 Parts Rejected 2 | . . 1 . . . . . . . . . . . . . 1 . . . . . Data Loss (minor) 10 | . . 3 . . . . . . . . . . . . . 1 1 3 . . 2 Misfires 3 | . . 2 . . . . . . . . . . . . . 1 . . . . . Alerts 2 | . . . . . . . . . . . . . . . . . 1 1 . . . Misdirections 17 | . . . . . . . . . . . . . . . 2 2 6 5 2 . . Targeting Errors 15 | . . 3 . . . . . . . . . . . . 1 4 5 2 . . . Weapon Failures 2 | . . . . . . . . . . . . . . . . 2 . . . . . Overload Shots 3 | . . . . . . . . . . . . . . . . 3 . . . . . Overflow Damage 1059 | . . 41 37 81 . . . . . 98 160 6 59 184 127 5 56 35 21 38 111 Projectiles 117 | . . 41 20 15 . . . . . . . . . . . 5 . . . . 36 Explosions 582 | . . . 17 66 . . . . . 98 51 6 59 . 127 . 56 35 21 38 8 Melee 360 | . . . . . . . . . . . 109 . . 184 . . . . . . 67 Knockbacks 2 | . . . . . . . . . . . . . . . . . . 2 . . . Impact . | . . . . . . . . . . . . . . . . . . . . . . Kinetic 2 | . . . . . . . . . . . . . . . . . . 2 . . . Secondary . | . . . . . . . . . . . . . . . . . . . . . . Self-Inflicted Damage 794 | . . . 136 100 . . . . . 58 . . . . 317 . 69 73 11 . 30 Shots 30 | . . . 3 4 . . . . . 2 . . . . 13 . 3 3 1 . 1 Rammed 4 | . . . . . . . . . . . . 1 . . 2 1 . . . . . Targets Rammed 5 | . . . . . . . . . . . . 1 . . 2 1 1 . . . . Kicked . | . . . . . . . . . . . . . . . . . . . . . . Crushed 1 | . . . . . . . . . . . . . . . . . 1 . . . . Highest Temperature 619 | . 18 281 288 195 . . . 12 . 58 36 97 131 . 482 300 619 98 45 . 224 Average Temperature 96 | . 7 88 67 69 . . . 8 . 23 19 35 58 . 118 113 219 38 24 . 123 Received Heat Transfer 3875 | . 201 225 423 63 . . . 27 . 174 264 44 95 6 1056 789 102 81 81 . 244 Effects 11 | . . 2 1 . . . . . . . . . . . 5 . 2 . . . 1 Shutdowns 1 | . . . . . . . . . . . . . . . 1 . . . . . . Energy Bleed 3 | . . . 1 . . . . . . . . . . . 1 . . . . . 1 Interference 5 | . . 2 . . . . . . . . . . . . 3 . . . . . . Matter Decay 1 | . . . . . . . . . . . . . . . . . 1 . . . . Damage (core) 1 | . . . . . . . . . . . . . . . . . 1 . . . . Siege Activations 10 | . . . . . . . . . . . . . . . 8 2 . . . . . Total Turns 255 | . . . . . . . . . . . . . . . 235 20 . . . . . Longest Duration 65 | . . . . . . . . . . . . . . . 65 11 . . . . . Robots Corrupted 12 | . . 1 4 2 . . . . . . 1 . . . . . . . . . 4 Combat Hostiles 10 | . . . 4 2 . . . . . . 1 . . . . . . . . . 3 Parts Fried 30 | . . 4 9 5 . . . . . . 1 2 . . 1 . . . . . 8 Impact Corruptions . | . . . . . . . . . . . . . . . . . . . . . . Robots Melted 1 | . . . . . . . . . . . . . . . . 1 . . . . . Combat Hostiles 1 | . . . . . . . . . . . . . . . . 1 . . . . . Parts Melted 5 | . . . . . . . . . . . . 1 1 . . 2 . . . . 1 Heat Transferred 3924 | . . . 350 150 . . . . . . . . 300 . 285 2839 . . . . . Parts Sabotaged 1 | . . . . . . . . . . . . . . . 1 . . . . . . Parts Stolen 2 | . . . . . . . 1 1 . . . . . . . . . . . . . Parts Stripped . | . . . . . . . . . . . . . . . . . . . . . . Power Chain Reactions 9 | . . . 5 1 . . . . . . . . 2 . 1 . . . . . . Missiles Intercepted . | . . . . . . . . . . . . . . . . . . . . . . Alert | -11 -10 -9 -8 -7 -7 -7 -7 -7 -7 -6 -6 -6 -6 -6 -6 -5 -5 -5 -5 -4 -4 ------- Run | Scr Mat Mat Mat Fac Was Fac Low Low Dat Pro Fac Ext Cet Arc Hub Fac Upp Upp War Pro Fac Peak Influence 3003 | . 236 328 558 646 226 10 . . . . 399 386 946 661 3003 1723 . . . . 731 Average Influence 525 | . 116 217 243 423 105 . . . . . 189 141 502 607 1008 1466 . . . . 323 Maximum Alert Level 5 | . 1 1 2 2 1 . . . . . 1 1 3 2 5 5 . . . . 3 Low Security (%) 22 | 100 89 34 30 . 57 100 . . . . 56 76 . . . . . . . . 32 Level 1 26 | . 10 65 56 54 42 . . . . . 43 23 12 5 17 . . . . . 38 Level 2 15 | . . . 13 45 . . . . . . . . 81 94 22 . . . . . 22 Level 3 7 | . . . . . . . . . . . . . 6 . 31 6 . . . . 7 Level 4 27 | . . . . . . . . . . . . . . . 10 87 . . . . . Level 5 . | . . . . . . . . . . . . . . . 3 5 . . . . . High Security . | . . . . . . . . . . . . . . . 14 . . . . . . Max Security . | . . . . . . . . . . . . . . . . . . . . . . Squads Dispatched 53 | . 2 1 3 3 . 1 . . . 1 6 2 . . 19 12 . . . . 3 Investigation 5 | . 1 . . . . 1 . . . . 1 1 . . . 1 . . . . . Extermination 8 | . . . . . . . . . . . 1 . . . 4 2 . . . . 1 Reinforcement 19 | . 1 1 3 3 . . . . . . 4 1 . . 2 3 . . . . 1 Assault 18 | . . . . . . . . . . 1 . . . . 13 3 . . . . 1 Garrison 3 | . . . . . . . . . . . . . . . . 3 . . . . . Intercept . | . . . . . . . . . . . . . . . . . . . . . . Construction Impeded 5 | . . . 1 . . . . . . . 2 1 . . 1 . . . . . . Haulers Reinforced 3 | . . . . . . . . . . . 2 . . . . 1 . . . . . Stealth | -11 -10 -9 -8 -7 -7 -7 -7 -7 -7 -6 -6 -6 -6 -6 -6 -5 -5 -5 -5 -4 -4 --------- Run | Scr Mat Mat Mat Fac Was Fac Low Low Dat Pro Fac Ext Cet Arc Hub Fac Upp Upp War Pro Fac Distress Signals 9 | . . 1 3 . . . . . . . 1 2 2 . . . . . . . . Communications Jammed . | . . . . . . . . . . . . . . . . . . . . . . Distress Signals . | . . . . . . . . . . . . . . . . . . . . . . Times Spotted 465 | . 16 19 41 14 6 2 1 2 . 25 22 20 32 16 140 38 18 15 8 3 27 Peak Tracking Total 14 | . 5 5 5 4 3 1 1 1 . 8 8 4 8 2 14 7 8 9 8 3 6 Tactical Retreats 40 | . . 2 7 . . . . . . 1 2 1 . . 16 1 7 . 1 1 1 Traps | -11 -10 -9 -8 -7 -7 -7 -7 -7 -7 -6 -6 -6 -6 -6 -6 -5 -5 -5 -5 -4 -4 ------- Run | Scr Mat Mat Mat Fac Was Fac Low Low Dat Pro Fac Ext Cet Arc Hub Fac Upp Upp War Pro Fac Traps Triggered 9 | . 2 . 1 1 . 1 . . . . . 2 . . . . 2 . . . . Indirectly . | . . . . . . . . . . . . . . . . . . . . . . Trap Hack Attempts . | . . . . . . . . . . . . . . . . . . . . . . Triggered . | . . . . . . . . . . . . . . . . . . . . . . Disarmed . | . . . . . . . . . . . . . . . . . . . . . . Reprogrammed . | . . . . . . . . . . . . . . . . . . . . . . Reused . | . . . . . . . . . . . . . . . . . . . . . . Traps Extracted . | . . . . . . . . . . . . . . . . . . . . . . Installed . | . . . . . . . . . . . . . . . . . . . . . . Triggered 2 | . . 1 . . . . . . . . . . . . . . . . 1 . . Machines | -11 -10 -9 -8 -7 -7 -7 -7 -7 -7 -6 -6 -6 -6 -6 -6 -5 -5 -5 -5 -4 -4 ---------- Run | Scr Mat Mat Mat Fac Was Fac Low Low Dat Pro Fac Ext Cet Arc Hub Fac Upp Upp War Pro Fac Machines Disabled 65 | . . 1 3 11 . . . . . 1 3 3 . 4 33 2 . 2 . . 2 Max in Single Turn 19 | . . 1 1 4 . . . . . 1 2 2 . 1 19 1 . 1 . . 1 Garrison Access 2 | . . . . . . . . . . . 1 . . . 1 . . . . . . Network Hub 3 | . . . . . . . . . . . . . . . 3 . . . . . . Machines Sabotaged . | . . . . . . . . . . . . . . . . . . . . . . Garrisons Compromised . | . . . . . . . . . . . . . . . . . . . . . . Overloaded Fab Kills . | . . . . . . . . . . . . . . . . . . . . . . Fab Network Shutdowns 2 | . . . . . . . . . . . . . . . . 1 . . . . 1 Hacking | -11 -10 -9 -8 -7 -7 -7 -7 -7 -7 -6 -6 -6 -6 -6 -6 -5 -5 -5 -5 -4 -4 --------- Run | Scr Mat Mat Mat Fac Was Fac Low Low Dat Pro Fac Ext Cet Arc Hub Fac Upp Upp War Pro Fac Machines Accessed 55 | . 3 1 5 3 . 2 . . 3 . 7 9 4 . 6 7 1 . . . 4 Terminals 38 | . 3 1 3 1 . 2 . . . . 4 9 4 . 6 3 . . . . 2 Fabricators 6 | . . . . 1 . . . . . . 2 . . . . 2 . . . . 1 Repair Stations 1 | . . . . . . . . . . . . . . . . . . . . . 1 Recycling Units . | . . . . . . . . . . . . . . . . . . . . . . Scanalyzers 5 | . . . 2 1 . . . . . . . . . . . 2 . . . . . Garrison Access 1 | . . . . . . . . . . . 1 . . . . . . . . . . Total Hacks 203 | . 7 2 13 3 . 5 . . 23 . 27 26 11 . 17 43 1 . . . 25 Successful 131 | . 2 2 8 . . 2 . . 23 . 20 9 5 . 9 30 1 . . . 20 Failed 69 | . 5 . 5 3 . 2 . . . . 7 16 6 . 8 12 . . . . 5 Catastrophic 7 | . 1 . . . . . . . . . . 1 2 . 2 1 . . . . . Database Lockouts 3 | . . . . . . 1 . . . . . 1 . . . 1 . . . . . Manual 116 | . 5 3 2 . . 4 . . . . 19 19 6 . 15 29 . . 1 . 13 Terminals 138 | . 7 2 6 1 . 5 . . . . 21 26 11 . 17 30 . . . . 12 Fabricators 19 | . . . . 1 . . . . . . 5 . . . . 5 . . . . 8 Repair Stations 5 | . . . . . . . . . . . . . . . . . . . . . 5 Recycling Units . | . . . . . . . . . . . . . . . . . . . . . . Scanalyzers 16 | . . . 7 1 . . . . . . . . . . . 8 . . . . . Garrison Access 1 | . . . . . . . . . . . 1 . . . . . . . . . . Terminal Hacks 71 | . 2 . 2 . . 2 . . 23 . 11 4 5 . 2 14 1 . . . 5 Record 10 | . . . . . . . . . 6 . 2 . 2 . . . . . . . . Part Schematic 11 | . . . . . . . . . 8 . 1 . . . . 2 . . . . . Robot Schematic 6 | . . . . . . . . . 6 . . . . . . . . . . . . Robot Analysis 10 | . 2 . . . . 1 . . . . 3 1 2 . . 1 . . . . . Prototype ID Bank 5 | . . . 1 . . . . . 3 . . 1 . . . . . . . . . Open Door 2 | . . . . . . . . . . . . . 1 . . . 1 . . . . Level Access Points 1 | . . . . . . . . . . . . . . . . . . . . . 1 Branch Access Points 4 | . . . . . . 1 . . . . 1 . . . . 1 . . . . 1 Emergency Access Points 1 | . . . . . . . . . . . 1 . . . . . . . . . . Terminal Index 1 | . . . . . . . . . . . . . . . . 1 . . . . . Fabricator Index 1 | . . . . . . . . . . . . . . . . 1 . . . . . Alert Level 2 | . . . . . . . . . . . . . . . . 1 . . . . 1 Unreport Threat 10 | . . . . . . . . . . . 1 2 . . 1 5 . . . . 1 Locate Traps 5 | . . . . . . . . . . . 2 . . . 1 1 . . . . 1 Maintenance Status 1 | . . . 1 . . . . . . . . . . . . . . . . . . Recall Investigation 1 | . . . . . . . . . . . . . . . . 1 . . . . . Fabricator Hacks 10 | . . . . . . . . . . . 2 . . . . 3 . . . . 5 Network Status 2 | . . . . . . . . . . . . . . . . 1 . . . . 1 Load Schematic 4 | . . . . . . . . . . . 1 . . . . 1 . . . . 2 Build 4 | . . . . . . . . . . . 1 . . . . 1 . . . . 2 Repair Station Hacks 4 | . . . . . . . . . . . . . . . . . . . . . 4 Scan Component 2 | . . . . . . . . . . . . . . . . . . . . . 2 Repair 2 | . . . . . . . . . . . . . . . . . . . . . 2 Recycling Unit Hacks . | . . . . . . . . . . . . . . . . . . . . . . Scanalyzer 11 | . . . 5 . . . . . . . . . . . . 6 . . . . . Insert Component 4 | . . . 2 . . . . . . . . . . . . 2 . . . . . Analyze 7 | . . . 3 . . . . . . . . . . . . 4 . . . . . Garrison Access Hacks 1 | . . . . . . . . . . . 1 . . . . . . . . . . Seal Access 1 | . . . . . . . . . . . 1 . . . . . . . . . . Unauthorized Hacks 34 | . . 2 1 . . . . . . . 6 5 . . 7 7 . . . . 6 Terminals 28 | . . 2 1 . . . . . . . 4 5 . . 7 6 . . . . 3 Track 11 | . . 1 . . . . . . . . 2 2 . . 3 2 . . . . 1 Assimilate 3 | . . . . . . . . . . . . . . . 3 . . . . . . Botnet 9 | . . 1 1 . . . . . . . 1 3 . . . 2 . . . . 1 Operators 5 | . . . . . . . . . . . 1 . . . 1 2 . . . . 1 Fabricators 6 | . . . . . . . . . . . 2 . . . . 1 . . . . 3 Report 3 | . . . . . . . . . . . 1 . . . . 1 . . . . 1 Prioritize 2 | . . . . . . . . . . . 1 . . . . . . . . . 1 Siphon 1 | . . . . . . . . . . . . . . . . . . . . . 1 Repair Stations . | . . . . . . . . . . . . . . . . . . . . . . Recycling Units . | . . . . . . . . . . . . . . . . . . . . . . Scanalyzers . | . . . . . . . . . . . . . . . . . . . . . . Garrison Access . | . . . . . . . . . . . . . . . . . . . . . . Data Cores Recovered 4 | . 1 . . . . 1 . . . . . 1 . . 1 . . . . . . Used 2 | . . . . . . 1 . . . . . 1 . . . . . . . . . Hacking Detections 37 | . 2 . 4 2 . 2 . . . . 5 8 4 . 5 3 . . . . 2 Full Trace Events 1 | . . . . . . . . . . . 1 . . . . . . . . . . Feedback Events . | . . . . . . . . . . . . . . . . . . . . . . Feedback Blocked . | . . . . . . . . . . . . . . . . . . . . . . Robot Schematics Acquired 6 | . . . . . . . . . 6 . . . . . . . . . . . . Robots Built . | . . . . . . . . . . . . . . . . . . . . . . Matter . | . . . . . . . . . . . . . . . . . . . . . . Time . | . . . . . . . . . . . . . . . . . . . . . . Total Robot Build Rating . | . . . . . . . . . . . . . . . . . . . . . . Part Schematics Acquired 14 | . . . 1 . . . . . 8 . 1 . . . . 4 . . . . . Parts Built 4 | . . . . . . . . . . . 1 . . . . 1 . . . . 2 Matter 1134 | . . . . . . . . . . . 318 . . . . 318 . . . . 498 Time 566 | . . . . . . . . . . . 169 . . . . 169 . . . . 228 Total Part Build Rating 22 | . . . . . . . . . . . 6 . . . . 6 . . . . 10 Parts Repaired 2 | . . . . . . . . . . . . . . . . . . . . . 2 Time 63 | . . . . . . . . . . . . . . . . . . . . . 63 Parts Recycled . | . . . . . . . . . . . . . . . . . . . . . . Recycled Matter . | . . . . . . . . . . . . . . . . . . . . . . Retrieved Matter . | . . . . . . . . . . . . . . . . . . . . . . Retrieved Components . | . . . . . . . . . . . . . . . . . . . . . . Parts Scanalyzed 4 | . . . 2 . . . . . . . . . . . . 2 . . . . . Part Schematics Acquired 3 | . . . 1 . . . . . . . . . . . . 2 . . . . . Parts Damaged 1 | . . . 1 . . . . . . . . . . . . . . . . . . Bothacking | -11 -10 -9 -8 -7 -7 -7 -7 -7 -7 -6 -6 -6 -6 -6 -6 -5 -5 -5 -5 -4 -4 ------------ Run | Scr Mat Mat Mat Fac Was Fac Low Low Dat Pro Fac Ext Cet Arc Hub Fac Upp Upp War Pro Fac Used RIF Installer . | . . . . . . . . . . . . . . . . . . . . . . Robots Hacked 1 | . . . . 1 . . . . . . . . . . . . . . . . . Non-combat 1 | . . . . 1 . . . . . . . . . . . . . . . . . Combat . | . . . . . . . . . . . . . . . . . . . . . . Robot Hacks Applied 1 | . . . . 1 . . . . . . . . . . . . . . . . . find_chute 1 | . . . . 1 . . . . . . . . . . . . . . . . . Relay Couplers Released . | . . . . . . . . . . . . . . . . . . . . . . Robots Rewired 6 | . . . . . . . . . . . . 4 . . . . . 2 . . . Allies Hacked 1 | . . . . . . . . . . . . . 1 . . . . . . . . Hacks Repelled . | . . . . . . . . . . . . . . . . . . . . . . Allies | -11 -10 -9 -8 -7 -7 -7 -7 -7 -7 -6 -6 -6 -6 -6 -6 -5 -5 -5 -5 -4 -4 -------- Run | Scr Mat Mat Mat Fac Was Fac Low Low Dat Pro Fac Ext Cet Arc Hub Fac Upp Upp War Pro Fac Total Allies 19 | . . . . . . . . . . 1 . 10 5 . 1 . . 2 . . . Largest Group 10 | . . . . . . . . . . 1 1 10 7 6 4 . . 2 2 . . Highest-Rated Group 610 | . . . . . . . . . . 94 94 407 610 597 376 . . 58 58 . . Highest-Rated Ally 156 | . . . . . . . . . . 94 94 156 156 127 94 . . 29 29 . . Total Orders . | . . . . . . . . . . . . . . . . . . . . . . Ally Attacks 333 | . . . . . . . . . . 25 11 121 95 14 67 . . . . . . Total Damage 10275 | . . . . . . . . . . 883 423 2669 3368 454 2478 . . . . . . Kills 82 | . . . . . . . . . . 12 3 18 26 3 20 . . . . . . Allies Corrupted 2 | . . . . . . . . . . . . . . . . . . . 2 . . Allies Melted . | . . . . . . . . . . . . . . . . . . . . . . Intel | -11 -10 -9 -8 -7 -7 -7 -7 -7 -7 -6 -6 -6 -6 -6 -6 -5 -5 -5 -5 -4 -4 ------- Run | Scr Mat Mat Mat Fac Was Fac Low Low Dat Pro Fac Ext Cet Arc Hub Fac Upp Upp War Pro Fac Robot Analysis Total 10 | . 2 . . . . 1 . . . . 3 1 2 . . 1 . . . . . Derelict Logs Recovered 6 | . . . . . . . 2 . . 1 . . . . . . 1 2 . . . Drone Launches . | . . . . . . . . . . . . . . . . . . . . . . Drone Recoveries . | . . . . . . . . . . . . . . . . . . . . . . Exploration | -11 -10 -9 -8 -7 -7 -7 -7 -7 -7 -6 -6 -6 -6 -6 -6 -5 -5 -5 -5 -4 -4 ------------- Run | Scr Mat Mat Mat Fac Was Fac Low Low Dat Pro Fac Ext Cet Arc Hub Fac Upp Upp War Pro Fac Turns Passed 13488 | 36 261 587 1200 375 949 384 708 310 105 463 852 1009 561 233 2175 1105 307 431 364 365 708 Spaces Moved 7312 | 30 173 278 487 231 563 264 489 207 76 283 473 490 257 95 824 469 361 387 267 337 271 Core 311 | 2 . . . . . . . . . . . . . . 1 . 304 . . . 4 Treads 2647 | . . 165 233 11 . . . . . . 57 490 257 95 823 469 47 . . . . Legs 812 | . . . . . . . . . . . . . . . . . . . 235 337 240 Wheels 3515 | 28 173 113 254 220 563 264 489 207 76 283 416 . . . . . 10 387 32 . . Hover . | . . . . . . . . . . . . . . . . . . . . . . Flight 27 | . . . . . . . . . . . . . . . . . . . . . 27 Fastest Speed 32 | 50 80 90 110 120 120 130 140 140 140 130 130 180 180 180 180 160 50 100 90 100 32 Average Speed 140 | 78 84 156 147 122 124 138 140 140 140 139 140 187 182 180 195 160 65 100 110 100 100 Slowest Speed 2700 | 80 90 200 220 180 130 140 140 140 140 140 180 200 200 180 2700 160 160 100 150 100 215 Overloaded Moves . | . . . . . . . . . . . . . . . . . . . . . . Propulsion Burnouts . | . . . . . . . . . . . . . . . . . . . . . . Robots Hopped . | . . . . . . . . . . . . . . . . . . . . . . Cave-ins Triggered 4 | . . 1 . . . . . . . . . . . . 2 1 . . . . . Exploration Rate (%) 48 | 4 37 29 62 9 99 11 72 37 69 50 15 67 84 83 81 17 69 57 46 62 9 Regions Visited 21 Branch Regions 12 Pre-discovered Areas 1 | . . . . . . . . . 1 . . . . . . . . . . . . Known Exits Taken 5 | . . . 1 . . 1 . . . . 1 . . . 1 1 . . . . . Unknown Exits Taken 14 | 1 1 1 . . . . 1 1 1 1 . 1 1 1 . . 1 1 1 1 . Scrap Searched 9 | . . . . . . . 6 . . 1 . . . . . . 1 . . 1 . Spaces Dug 56 | . . . . . . . . . . . 9 . . . . 10 13 4 . 5 15 Terrain Destroyed 1333 | . . . 66 36 . . . . . 71 54 21 48 2 652 28 130 51 53 56 65 Melee 52 | . . . . . . . . . . . 9 . . . . 6 13 4 . 5 15 Projectile 95 | . . . . . . . . . . . . . 1 2 73 13 . 4 . . 2 AOE 1186 | . . . 66 36 . . . . . 71 45 21 47 . 579 9 117 43 53 51 48 Actions | -11 -10 -9 -8 -7 -7 -7 -7 -7 -7 -6 -6 -6 -6 -6 -6 -5 -5 -5 -5 -4 -4 --------- Run | Scr Mat Mat Mat Fac Was Fac Low Low Dat Pro Fac Ext Cet Arc Hub Fac Upp Upp War Pro Fac Total 9248 | 39 228 365 850 294 702 280 499 216 75 312 573 561 310 131 1082 652 402 412 330 350 585 Wait 723 | . 12 30 226 21 54 3 . 3 . . 24 20 2 . 43 38 3 5 44 1 194 Move 7293 | 29 172 277 486 231 562 263 488 206 75 282 472 489 256 94 824 468 360 386 266 336 271 Hop . | . . . . . . . . . . . . . . . . . . . . . . Pick Up 106 | 4 9 13 19 5 9 2 2 . . . 4 3 10 4 8 8 . . 2 . 4 Fast Attach 55 | 6 1 1 2 1 1 . 1 . . 2 2 2 4 . 2 3 4 1 10 1 11 Attach 96 | . 2 9 10 5 1 1 . 1 . . 9 1 . 1 14 25 3 1 2 1 10 Detach 30 | . . 1 2 . 1 1 . . . . 1 4 1 . 2 4 2 1 2 1 7 Swap 62 | . 1 1 5 3 2 1 . . . 2 8 5 6 2 17 6 . 1 . 1 1 Drop 57 | . 1 . 3 3 14 . . . . 1 3 1 6 5 5 2 5 . 1 . 7 Fire 677 | . 30 33 97 24 58 1 8 6 . 25 31 14 24 20 166 91 7 10 3 4 25 Melee 115 | . . . . 1 . . . . . . 19 2 1 5 . 6 17 4 . 5 55 Ram . | . . . . . . . . . . . . . . . . . . . . . . Kick . | . . . . . . . . . . . . . . . . . . . . . . Crush 4 | . . . . . . . . . . . . 1 . . 1 1 1 . . . . Escape Stasis 12 | . . . . . . 8 . . . . . 4 . . . . . . . . . Rewire 18 | . . . . . . . . . . . . 15 . . . . . 3 . . . Trap . | . . . . . . . . . . . . . . . . . . . . . . Miscellaneous . | . . . . . . . . . . . . . . . . . . . . . . Route ------- -11/Scrapyard -10/Materials -9/Materials -8/Materials (discovered 2 exits: *Fac x2) -7/Factory -7/Waste -7/Factory (discovered 2 exits: *Low x2) -7/Lower Caves -7/Lower Caves -7/Data Miner -6/Proximity Caves -6/Factory (discovered 5 exits: Fac / Low x2 / *Ext x2) -6/Extension (discovered 3 exits: *Fac x2 / *Cet) -6/Cetus (discovered 2 exits: *Fac / [*Arc]) -6/Archives (discovered 2 exits: *Fac / *Hub) -6/Hub_04(d) (discovered 2 exits: *Fac x2) -5/Factory (discovered 2 exits: *Upp x2) -5/Upper Caves (discovered 2 exits: [*Upp] / *War) -5/Upper Caves -5/Warlord -4/Proximity Caves -4/Factory (discovered 6 exits: Res x4 / Upp x2) History --------- Turn | Location | Event 2 | -11/Scrapyard | Met Revision 17 21 | -11/Scrapyard | Discovered new exit (range 16) 37 | -11/Scrapyard | Entered Materials 286 | -10/Materials | Discovered new exit (range 9) 297 | -10/Materials | Core integrity fell below 50% 298 | -10/Materials | Entered another Materials area 298 | -9/Materials | Evolved 2 slots: Utility x2 413 | -9/Materials | Lost 3 parts (1p1n1w) 426 | -9/Materials | Crushed by falling debris 600 | -9/Materials | Build established: Hauler-Mutant 833 | -9/Materials | Discovered new exit (range 16) 885 | -9/Materials | Entered another Materials area 885 | -8/Materials | Evolved 2 slots: Utility x2 1392 | -8/Materials | Discovered new exit (range 13) 2063 | -8/Materials | Discovered new exit (range 8) 2085 | -8/Materials | Identified exit to Factory 2085 | -8/Materials | Entered Factory 2085 | -7/Factory | Evolved 2 slots: Utility x2 2460 | -7/Factory | Sucked down chute 2460 | -7/Factory | Entered Waste 2487 | -7/Waste | Spotted C-40 Crusher 2531 | -7/Waste | Destroyed C-40 Crusher 2550 | -7/Waste | Found Damper Plating 2558 | -7/Waste | Spotted C-40 Crusher 2559 | -7/Waste | Spotted C-40 Crusher 2649 | -7/Waste | Spotted C-40 Crusher 2697 | -7/Waste | Destroyed C-40 Crusher 2758 | -7/Waste | Spotted C-40 Crusher 2759 | -7/Waste | Spotted C-40 Crusher 2760 | -7/Waste | Destroyed C-40 Crusher 2818 | -7/Waste | Destroyed C-40 Crusher 2922 | -7/Waste | Destroyed C-40 Crusher 2939 | -7/Waste | Found Damper Plating 3080 | -7/Waste | Destroyed C-40 Crusher 3103 | -7/Waste | Found Damper Plating 3212 | -7/Waste | Discovered new exit (range 12) 3290 | -7/Waste | Found Damper Plating 3406 | -7/Waste | Identified exit to Factory 3409 | -7/Waste | Entered Factory 3734 | -7/Factory | Identified exit to Lower Caves 3773 | -7/Factory | Central database locked down 3793 | -7/Factory | Entered Lower Caves 3807 | -7/Lower Caves | Flak Gun stolen by Master Thief 3823 | -7/Lower Caves | Learned Factory trap positions 4000 | -7/Lower Caves | Learned Factory terminal intel 4480 | -7/Lower Caves | Discovered new exit (range 12) 4501 | -7/Lower Caves | Entered another Lower Caves area 4506 | -7/Lower Caves | Flak Gun stolen by Master Thief 4728 | -7/Lower Caves | Discovered new exit (range 14) 4811 | -7/Lower Caves | Entered Data Miner 4811 | -7/Data Miner | Discovered new exit (range 6) 4838 | -7/Data Miner | Met Data Miner 4866 | -7/Data Miner | Learned location of Section 7 (-2) 4866 | -7/Data Miner | Acquired the access code to Warlord's prototype stash 4884 | -7/Data Miner | Received God Mode back door access code from Data Miner 4916 | -7/Data Miner | Entered Proximity Caves 5058 | -6/Proximity Caves | Escorted by Enhanced Grunt 5073 | -6/Proximity Caves | Attracted the attention of an 0b10 checkpoint 5107 | -6/Proximity Caves | Learned 8 Factory zone layouts 5205 | -6/Proximity Caves | Attracted the attention of an 0b10 outpost 5245 | -6/Proximity Caves | Discovered new exit (range 15) 5379 | -6/Proximity Caves | Entered Factory 5379 | -6/Factory | Accompanied by 1 ally 5379 | -6/Factory | Evolved 2 slots: Utility x2 5380 | -6/Factory | Identified exit to Factory 5381 | -6/Factory | Loaded intel: 108 trap records 5382 | -6/Factory | Loaded intel: 22 terminal locations 5492 | -6/Factory | Identified exit to Lower Caves 5492 | -6/Factory | Identified exit to Extension 5660 | -6/Factory | Fabricated Mni. Smartbomb Launcher? 5740 | -6/Factory | Found Prototype Launcher 5741 | -6/Factory | Identified Rocket Array 5801 | -6/Factory | Build established: Hacker-Mutant 6013 | -6/Factory | Spotted B-75 Beast 6134 | -6/Factory | Build established: Hauler-Mutant 6143 | -6/Factory | Lost 3 parts (1p1n1w) 6231 | -6/Factory | Entered Extension 6286 | -6/Extension | Rescued a captive Derelict 6287 | -6/Extension | Rescued a captive Derelict 6343 | -6/Extension | Rescued A7 6486 | -6/Extension | Rescued a captive Derelict 6487 | -6/Extension | Rescued a captive Derelict 6495 | -6/Extension | Central database locked down 6519 | -6/Extension | Incoming investigation squad redirected 6614 | -6/Extension | Rescued a captive Derelict 6962 | -6/Extension | Spotted B-75 Beast 6970 | -6/Extension | Allies destroyed B-75 Beast 6986 | -6/Extension | Spotted B-75 Beast 7006 | -6/Extension | Destroyed B-75 Beast 7025 | -6/Extension | Discovered exit to Factory (range 5) 7204 | -6/Extension | Discovered new exit (range 15) 7206 | -6/Extension | Discovered exit to Factory (range 15) 7240 | -6/Extension | Entered Cetus 7240 | -6/Cetus | Accompanied by 7 allies 7245 | -6/Cetus | Acquired a Cetus Manufacturing Module code from A7 7268 | -6/Cetus | Spotted Cetus Guard 7268 | -6/Cetus | Spotted Cetus Guard 7275 | -6/Cetus | Allies destroyed Cetus Guard 7275 | -6/Cetus | Spotted Cetus Guard 7275 | -6/Cetus | Spotted Cetus Guard 7280 | -6/Cetus | Allies destroyed Cetus Guard 7288 | -6/Cetus | Destroyed Cetus Guard 7288 | -6/Cetus | Destroyed Cetus Guard 7404 | -6/Cetus | Escorted A7 to Cetus Mainframe 7564 | -6/Cetus | Started Cetus Manufacturing Module 7586 | -6/Cetus | Discovered new exit (range 16) 7589 | -6/Cetus | Manufactured an Enhanced Grunt 7614 | -6/Cetus | Manufactured an Enhanced Grunt 7624 | -6/Cetus | Spotted Cetus Guard 7624 | -6/Cetus | Spotted Cetus Guard 7635 | -6/Cetus | Allies destroyed Cetus Guard 7637 | -6/Cetus | Spotted Cetus Guard 7638 | -6/Cetus | Spotted Cetus Guard 7639 | -6/Cetus | Manufactured an Enhanced Grunt 7642 | -6/Cetus | Destroyed Cetus Guard 7643 | -6/Cetus | Allies destroyed Cetus Guard 7648 | -6/Cetus | Allies destroyed Cetus Guard 7655 | -6/Cetus | Discovered exit to Factory (range 16) 7664 | -6/Cetus | Manufactured an Enhanced Grunt 7667 | -6/Cetus | Met Revision 17 7689 | -6/Cetus | Manufactured an Enhanced Grunt 7801 | -6/Cetus | Entered Archives 7801 | -6/Archives | Accompanied by 6 allies 7806 | -6/Archives | Received a hacking code to weaken MAIN.C 7898 | -6/Archives | Discovered exit to Factory (range 15) 8000 | -6/Archives | Discovered new exit (range 15) 8034 | -6/Archives | Entered Hub_04(d) 8034 | -6/Hub_04(d) | Accompanied by 4 allies 8340 | -6/Hub_04(d) | Build established: Scavenger-Mutant 8519 | -6/Hub_04(d) | Discovered exit to Factory (range 6) 8734 | -6/Hub_04(d) | First assault squad dispatched 8830 | -6/Hub_04(d) | Build established: Hauler-Mutant 9168 | -6/Hub_04(d) | Incoming assault squad redirected 9462 | -6/Hub_04(d) | Incoming assault squad redirected 9531 | -6/Hub_04(d) | Network Hub disabled 9581 | -6/Hub_04(d) | Network Hub disabled 9581 | -6/Hub_04(d) | Spotted Lightning 9581 | -6/Hub_04(d) | Spotted Lightning 9581 | -6/Hub_04(d) | Spotted Lightning 9581 | -6/Hub_04(d) | Spotted Lightning 9581 | -6/Hub_04(d) | Spotted Lightning 9581 | -6/Hub_04(d) | Spotted Lightning 9627 | -6/Hub_04(d) | Destroyed Lightning 9661 | -6/Hub_04(d) | Destroyed Lightning 9670 | -6/Hub_04(d) | Destroyed Lightning 9679 | -6/Hub_04(d) | Destroyed Lightning 9700 | -6/Hub_04(d) | Destroyed Lightning 9721 | -6/Hub_04(d) | Destroyed Lightning 9818 | -6/Hub_04(d) | Network Hub disabled 9829 | -6/Hub_04(d) | Spotted Lightning 9837 | -6/Hub_04(d) | Destroyed Lightning 9842 | -6/Hub_04(d) | Incoming assault squad redirected 9843 | -6/Hub_04(d) | Core integrity fell below 50% 9897 | -6/Hub_04(d) | High security lockdown imminent 9897 | -6/Hub_04(d) | Destroyed Lightning 9907 | -6/Hub_04(d) | Spotted Lightning 9909 | -6/Hub_04(d) | Spotted Lightning 9910 | -6/Hub_04(d) | Spotted Lightning 9915 | -6/Hub_04(d) | Spotted Lightning 9942 | -6/Hub_04(d) | Destroyed 9 combat bots 9942 | -6/Hub_04(d) | Lost 3 parts (1u2w) 9977 | -6/Hub_04(d) | High security lockdown engaged 10004 | -6/Hub_04(d) | Destroyed Lightning 10022 | -6/Hub_04(d) | Found Prototype Energy Cannon 10053 | -6/Hub_04(d) | Found Exp. Targeting Computer 10063 | -6/Hub_04(d) | Destroyed 7 combat bots 10078 | -6/Hub_04(d) | Crushed by falling debris 10081 | -6/Hub_04(d) | Found Prototype Device 10099 | -6/Hub_04(d) | Destroyed Lightning 10100 | -6/Hub_04(d) | Crushed by falling debris 10100 | -6/Hub_04(d) | System corruption reached 10% 10102 | -6/Hub_04(d) | Destroyed Lightning 10131 | -6/Hub_04(d) | Lost 3 parts (1p1u1w) 10142 | -6/Hub_04(d) | Discovered exit to Factory (range 14) 10158 | -6/Hub_04(d) | Destroyed 11 combat bots 10184 | -6/Hub_04(d) | Core integrity fell below 20% 10209 | -6/Hub_04(d) | Entered Factory 10209 | -5/Factory | Evolved 2 slots: Propulsion x2 10228 | -5/Factory | Lost 6 parts (1p1n3u1w) 10254 | -5/Factory | Identified EM Dispersion Field 10448 | -5/Factory | Fabricated Mni. Smartbomb Launcher? 10509 | -5/Factory | First assault squad dispatched 10528 | -5/Factory | Incoming assault squad redirected 10570 | -5/Factory | Build established: Scavenger-Mutant 10835 | -5/Factory | Incoming assault squad redirected 10857 | -5/Factory | Garrison activated, responded to threat 10943 | -5/Factory | Crushed by falling debris 10954 | -5/Factory | Identified exit to Upper Caves 10982 | -5/Factory | Central database locked down 11009 | -5/Factory | Local fabrication network quarantined 11093 | -5/Factory | Lost 4 parts (3u1w) 11110 | -5/Factory | Destroyed 8 combat bots 11181 | -5/Factory | System corruption reached 10% 11192 | -5/Factory | Incoming assault squad redirected 11256 | -5/Factory | Lost 3 parts (1p1n1u) 11314 | -5/Factory | Entered Upper Caves 11332 | -5/Upper Caves | Attracted the attention of an 0b10 outpost 11363 | -5/Upper Caves | A Derelict revealed a hidden shortcut to "reach the base" 11452 | -5/Upper Caves | Lost 9 parts (2n5u2w) 11470 | -5/Upper Caves | Core integrity fell below 50% 11536 | -5/Upper Caves | Spotted B-75 Beast 11602 | -5/Upper Caves | Discovered new exit (range 10) 11604 | -5/Upper Caves | Learned Factory interactive machine intel 11621 | -5/Upper Caves | Entered another Upper Caves area 11694 | -5/Upper Caves | Build established: Hacker-Mutant 11786 | -5/Upper Caves | Learned Factory stockpile data 11808 | -5/Upper Caves | Learned Factory garrison access intel 12005 | -5/Upper Caves | Attracted the attention of an 0b10 outpost 12026 | -5/Upper Caves | Destroyed 9 combat bots 12038 | -5/Upper Caves | Discovered new exit (range 10) 12052 | -5/Upper Caves | Attracted the attention of an 0b10 checkpoint 12052 | -5/Upper Caves | Entered Warlord 12052 | -5/Warlord | Accompanied by 2 allies 12107 | -5/Warlord | System corruption cleaned by Quarantine Array 12209 | -5/Warlord | Met Warlord 12232 | -5/Warlord | Opened Warlord's prototype stash 12234 | -5/Warlord | Warlord's base attacked by MAIN.C 12237 | -5/Warlord | Found Prototype Reactor 12242 | -5/Warlord | Found Prototype Device 12242 | -5/Warlord | Identified Exp. Phase Shifter 12399 | -5/Warlord | Discovered new exit (range 12) 12416 | -5/Warlord | Entered Proximity Caves 12499 | -4/Proximity Caves | Attracted the attention of an 0b10 checkpoint 12773 | -4/Proximity Caves | Discovered new exit (range 8) 12781 | -4/Proximity Caves | Entered Factory 12781 | -4/Factory | Evolved 2 slots: Power x1, Utility x1 12783 | -4/Factory | Loaded intel: 45 interactive machine locations 12784 | -4/Factory | Loaded intel: 4 garrison access locations 12814 | -4/Factory | Identified Vortex Chain Reactor 12869 | -4/Factory | Identified EMDS 12895 | -4/Factory | Lost 3 parts (2u1w) 12999 | -4/Factory | Repaired Mni. Smartbomb Launcher? 13029 | -4/Factory | Repaired Axe 13181 | -4/Factory | Fabricated Exp. Sensor Array? 13280 | -4/Factory | Local fabrication network quarantined 13281 | -4/Factory | First assault squad dispatched 13298 | -4/Factory | Fabricated Exp. Signal Interpreter (x1) 13310 | -4/Factory | Incoming assault squad redirected 13338 | -4/Factory | Build established: Scavenger-Mutant 13396 | -4/Factory | Incoming assault squad redirected 13406 | -4/Factory | Identified exit to Upper Caves 13406 | -4/Factory | Identified exit to Research 13407 | -4/Factory | Lost 8 parts (4n3u1w) 13450 | -4/Factory | Core integrity fell below 50% 13477 | -4/Factory | Core integrity fell below 20% 13489 | -4/Factory | Destroyed by L-61 Swordsman with Power Sword Last Messages --------------- >>Alert(Purge) Purged threat record, alert level lowered. 13423_ System corrupted: Component data lost. 13423_ Destroyed Tesla Rifle. 13423_ Destroyed Antigrav System. 13429_ Electron Diverter destroyed. 13431_ Axe destroyed. 13437_ Exp. Sensor Array destroyed. 13437_ Electron Diverter destroyed. 13439_ Adv. Heat Sink destroyed. 13443_ System corrupted: Heat flow error (+267). 13443_ Adv. Cooling System destroyed. 13443_ Exp. Signal Interpreter destroyed. 13457_ EMDS Slug penetrates L-61 Swordsman. 13457_ L-61 Swordsman suffers critical hit. 13457_ Destroyed Microactuators. 13459_ System corrupted: Component data lost. 13459_ P-70 Sage resets L-61 Swordsman, system corruption cleaned. 13461_ EMDS destroyed. 13461_ Imp. System Shield destroyed. Map ----- +----------------------------------------------------+ | ?????????????????????????????????????????????????? | | ?????????????????????????????????????????????????? | | ?????????????????????????????????????????????????? | | ?????????????????????????????????????????????????? | | ?????????????????????????????????????????????????? | | ?????????????????????????????????????????????????? | | ?????????????????????????????????????????????????? | | ?????????????????????????????????????????????????? | | ?????????????????????????????????????????????????? | | ?????????!???????????????????????????????????????? | | ?????????????????????????????????????????????????? | | ?????????????????????????????????????????????????? | | ?????????????????????????????????????????????????? | | ???????????????????????????????????????o?????????? | | ?????????????????????????????????????????????????? | | ?????????????????????????????????????????????????? | | ?????????????????????????????????????????????????? | | ?????????????????????????????????????????????????? | | ?????????????????????????????????????????????????? | | ???????????????????????????????????????????????""" | | ???????????????????????????????????????????????"T? | | ???????????????????????????????????????""T""???""" | | ???????????????????????????????????????"""""?????? | | ?????????????????????????????????????????????????? | | ????????????????????????###??????????????????????? | | ????????????????????????#@##?????????????????????? | | ????????????????##########l#?????????????????????? | | ????????????????# p# #????????????????????? | | ????????????????# [ Tp###????????????????????? | | ????????????????# ! p "##?#######????????????? | | ????????????????# # ### #????????????? | | ????????????????#####+######"## #????????????? | | ?????????????? u +????????????? | | ?????????????????????+######### #????????????? | | ????????????????????p?????????# #????????????? | | ??????????????????????????????### ###????????????? | | ????????????????????????????#####+########???????? | | ?????????????????u??????????# #???????? | | ????????????????????????????# #???????? | | ????????????????????????????# #???????? | | ????????????????????????????# #???????? | | ????????????????????????????# #???????? | | ????????????????????????????# #???????? | | ????????????????????????????# #???????? | | ????????????????????????????# #??? ??? | | ????????????????????????????# #?? ???? | | ????????????????????????????# #? ""T""? | | ????????????????????????????# # " """? | | ????""??????????? ?????????# | | ????""???????????# ##############/#### # # | +----------------------------------------------------+ Best States ------------- Heat Dissipation 112 Energy Generation 55 Energy Capacity 925 Matter Stores 300 Matter Capacity 300 Sight Range 16 Robot Scan Range 30 Terrain Scan Range 24 Terrain Scan Density 10 Corruption Prevention 12 Armor Coverage 2400 Resistance: EM 90 Weapon Shielding 90 Phase Shifting 20 Evasion (%) 63 Targeting Accuracy 12 Core Analysis 6 Recoil Reduction 4 Offensive Hacking 42 Defensive Hacking 12 Item Schematics ----------------- Lrn. Sensor Array | -8/Materials | Scanalyzed Exp. Terrain Scanner | -7/Data Miner | Free Lgt. Regenerative Plating | -7/Data Miner | Free Exp. Flexi-carbon Leg | -7/Data Miner | Free Triangulator | -7/Data Miner | Free Exp. Targeting Computer | -7/Data Miner | Free Exp. ECM Suite | -7/Data Miner | Free Mni. Smartbomb Launcher | -7/Data Miner | Free Combat Drone Bay | -7/Data Miner | Free Force Rifle | -6/Factory | Hacked Exp. Weapon Shielding | -5/Factory | Scanalyzed Imp. Hacking Suite | -5/Factory | Scanalyzed Exp. Signal Interpreter | -5/Factory | Hacked Exp. Sensor Array | -5/Factory | Hacked Robot Schematics ------------------ I-47 Archangel | -7/Data Miner | Free I-36 Angel | -7/Data Miner | Free H-66 Slayer | -7/Data Miner | Free G-67 Veteran | -7/Data Miner | Free G-50 Soldier | -7/Data Miner | Free S-27 Virus | -7/Data Miner | Free Fabricated ------------ Mni. Smartbomb Launcher | x1 | -6/Factory Mni. Smartbomb Launcher | x1 | -5/Factory Exp. Sensor Array | x1 | -4/Factory Exp. Signal Interpreter | x1 | -4/Factory Alien Tech Used ----------------- None Achievements -------------- Maximum Efficiency Challenges ------------ None Game ------ Seed FocalImprovedRail Manual? 0 Play Time 03:25:16 Cumulative 204.0 hours Start 2020.08.27 @ 23:12:33 End 2020.08.28 @ 22:17:13 Sessions 13 Manual Loads 0 Difficulty Rogue Special Mode None Game No. 110 Rogue 110 Adventurer 0 Explorer 0 Win Type - Total 8 Types 6/0/1/1/0/0/0 Lore% 62 Gallery% 80 Achievement% 64 Wizard Run 0 Options --------- ASCII 0 Keyboard 0 Movement Mouse Keybinds 0 Fullscreen 1 Font 24/Smallcaps Map View 76x50 Tactical HUD 1 Map Filters NONE Filters NONE Steam 1 RUN: 8e4b5709-6113-41de-a99d-31700fe56b0f